bitfinex-derivatives/quotes_SOLF0:USTF0_20240824
["timestamp","ask_amount","ask_price","bid_price","bid_amount"]
[1724543580310,0.04404572,160.37,160.36,7.0765]
[1724543581607,0.04404572,160.37,160.36,3.96]
[1724543583406,0.04404572,160.37,160.36,7.0765]
[1724543583605,0.04404572,160.37,160.33,0.04637292]
[1724543583798,0.04404572,160.37,160.34,3.96]
[1724543585507,0.04404572,160.37,160.34,7.0769]
[1724543587911,3.16044572,160.37,160.33,7.12347292]
[1724543588111,0.04404572,160.37,160.33,0.04637292]
[1724543588607,0.04404572,160.37,160.34,3.1169]
[1724543589413,0.04404572,160.37,160.35,3.1167]
[1724543592507,0.04404572,160.37,160.34,3.1169]
[1724543592713,0.04404572,160.37,160.33,8.66637292]
[1724543593411,0.04404572,160.37,160.35,8.62]
[1724543595316,0.04404572,160.37,160.36,3.1165]
[1724543600425,0.04404572,160.37,160.36,5.11115628]
[1724543601121,0.04404572,160.37,160.36,3.1165]
[1724543601428,0.04404572,160.37,160.36,5.11120443]
[1724543602512,0.04404572,160.37,160.36,3.1165]
[1724543602710,0.04404572,160.37,160.36,5.80355419]
[1724543602918,5.3141,160.48,160.4,3.1156]
[1724543603119,8.62,160.46,160.4,11.7356]
[1724543603312,3.1151,160.44,160.4,11.7356]
[1724543604220,3.15591093,160.44,160.4,11.77615057]
[1724543606621,3.15591093,160.44,160.42,3.1153]
[1724543606622,0.04081093,160.44,160.42,3.1153]
[1724543608223,24.94,160.54,160.43,12.68]
[1724543608424,8.62,160.55,160.44,7.4668779]
[1724543608729,3.1131,160.54,160.48,3.1141]
[1724543609131,8.62,160.53,160.48,3.1141]
[1724543609431,8.66300646,160.53,160.49,3.16047167]
[1724543610427,11.77620646,160.53,160.49,0.04647167]
[1724543610729,8.62,160.52,160.49,0.04647167]
[1724543611126,11.7335,160.52,160.49,0.04647167]
[1724543611431,8.62,160.52,160.49,0.04647167]
[1724543611829,6.2165,160.79,160.49,143.04647167]
[1724543612020,8.62,160.58,160.5,1.99244995]
[1724543612226,8.62,160.56,160.48,8.62]
[1724543612531,8.62,160.54,160.47,4.06]
[1724543612718,8.62,160.54,160.49,3.1139]
[1724543612925,0.04260655,160.52,160.49,3.16019323]
[1724543613227,8.66260655,160.52,160.49,0.04629323]
[1724543614634,0.04260655,160.52,160.49,0.04629323]
[1724543614822,0.04260655,160.52,160.51,8.62]
[1724543615222,0.04260655,160.52,160.51,11.7336]
[1724543615531,1.3101,160.64,160.51,8.62]
[1724543615826,9.6315533,160.63,160.56,8.62]
[1724543616022,1.3101,160.64,160.5,2.4733]
[1724543616023,8.62,160.61,160.5,2.4733]
[1724543616223,35.7709,160.65,160.57,8.62]
[1724543616224,1.2909,160.65,160.57,8.62]
[1724543616425,8.62,160.64,160.58,8.62]
[1724543616725,8.62,160.64,160.59,0.04021688]
[1724543616926,8.62,160.61,160.59,0.04021688]
[1724543617227,1.2755,160.63,160.59,0.04021688]
[1724543617433,8.62,160.6,160.59,0.04021688]
[1724543617627,1.2755,160.63,160.59,0.04021688]
[1724543618227,8.62,160.7,160.62,8.62]
[1724543618428,275.4447504,160.85,160.64,0.04717021]
[1724543618429,21.5,160.71,160.64,0.04717021]
[1724543618732,21.5,160.71,160.61,21.5]
[1724543618733,4.12115906,160.7,160.66,0.04226008]
[1724543618930,21.5,160.69,160.66,0.04226008]
[1724543619933,25.8,160.69,160.66,0.04226008]
[1724543620233,21.5,160.69,160.66,0.04226008]
[1724543620536,3.1105,160.67,160.66,0.04226008]
[1724543623429,4.3,160.69,160.66,0.04226008]
[1724543623636,21.5,160.82,160.68,21.5]
[1724543623829,21.5,160.75,160.73,0.04090247]
[1724543624133,21.5,160.75,160.64,21.5]
[1724543624335,1.3119,160.74,160.64,21.5]
[1724543625041,0.04696421,160.71,160.67,0.04747282]
[1724543625441,0.04696421,160.71,160.67,3.15787282]
[1724543626139,3.1086,160.78,160.67,0.04747282]
[1724543626336,3.1086,160.78,160.6,25.1851]
[1724543626337,24.0767,160.83,160.73,21.5]
[1724543626543,1.01023127,160.82,160.73,21.5]
[1724543626738,1.01023127,160.82,160.69,1.1976]
[1724543626739,1.01023127,160.82,160.71,21.5]
[1724543627142,3.108,160.8,160.73,3.1092]
[1724543627347,2.5767,160.83,160.75,0.04619801]
[1724543627538,4.6,160.84,160.75,0.04619801]
[1724543627845,21.5,160.86,160.76,21.5]
[1724543628036,21.5,160.86,160.79,0.04173006]
[1724543628346,24.607,160.86,160.79,0.04173006]
[1724543628541,21.5,160.86,160.79,0.04173006]
[1724543628741,3.1076,160.83,160.79,0.04173006]
[1724543628947,21.5,160.84,160.79,0.04173006]
[1724543629146,3.8092,160.83,160.79,0.04173006]
[1724543629736,3.1078,160.81,160.79,0.04173006]
[1724543629940,3.8092,160.83,160.79,0.04173006]
[1724543631042,3.1079,160.81,160.79,0.04173006]
[1724543631746,3.108,160.8,160.79,0.04173006]
[1724543632145,21.5,160.8,160.73,3.1092]
[1724543632851,21.5,160.77,160.71,3.1097]
[1724543633250,0.0409061,160.76,160.72,0.04641541]
[1724543633951,21.5409061,160.76,160.72,0.04641541]
[1724543634254,21.5,160.74,160.72,0.04641541]
[1724543634449,3.1098,160.71,160.66,3.1107]
[1724543635246,22.6983,160.74,160.65,21.5]
[1724543635749,0.04157561,160.71,160.68,0.0394771]
[1724543636954,3.11,160.7,160.68,0.0394771]
[1724543637549,3.1101,160.69,160.68,0.0394771]
[1724543641258,0.04157561,160.71,160.68,0.0394771]
[1724543641661,21.54157561,160.71,160.68,0.0394771]
[1724543641855,3.1101,160.69,160.68,0.0394771]
[1724543642048,21.5,160.69,160.59,26.08]
[1724543642453,21.5,160.69,160.59,21.5]
[1724543642953,0.03990338,160.66,160.62,0.04000461]
[1724543643155,3.111,160.65,160.62,0.04000461]
[1724543643552,0.03990338,160.66,160.62,0.04000461]
[1724543643752,1.34270338,160.66,160.62,0.04000461]
[1724543644654,3.1111,160.65,160.62,0.04000461]
[1724543645059,0.03990338,160.66,160.62,0.04000461]
[1724543645459,0.03990338,160.66,160.62,3.15130461]
[1724543645757,345.0,160.86,160.64,21.5]
[1724543645960,21.5,160.75,160.64,21.5]
[1724543646351,3.1101,160.7,160.64,24.6111]
[1724543646563,22.8028,160.73,160.64,21.5]
[1724543646857,22.8028,160.73,160.62,5.8044]
[1724543646858,0.04164584,160.7,160.67,0.04481934]
[1724543650363,3.15164584,160.7,160.67,0.04481934]
[1724543650667,0.04164584,160.7,160.67,0.04481934]
[1724543651763,3.1103,160.69,160.67,0.04481934]
[1724543653067,3.1101,160.69,160.67,0.04481934]
[1724543653457,0.04164584,160.7,160.67,0.04481934]
[1724543653665,3.1103,160.68,160.67,0.04481934]
[1724543654060,0.04164584,160.7,160.67,0.04481934]
[1724543655067,3.15164584,160.7,160.67,0.04481934]
[1724543655368,0.04164584,160.7,160.67,0.04481934]
[1724543656764,21.54164584,160.7,160.67,0.04481934]
[1724543656966,3.1103,160.69,160.67,0.04481934]
[1724543658968,3.1103,160.68,160.67,0.04481934]
[1724543663976,0.04164584,160.7,160.67,0.04481934]
[1724543664483,3.1103,160.68,160.67,0.04481934]
[1724543665477,24.6103,160.68,160.67,0.04481934]
[1724543667876,3.1112,160.64,160.59,3.112]
[1724543668478,3.1112,160.64,160.6,3.1119]
[1724543668974,3.15394345,160.64,160.6,3.15299962]
[1724543669179,3.1115,160.63,160.6,0.04109962]
[1724543669574,0.04274345,160.64,160.6,0.04109962]
[1724543669774,21.54274345,160.64,160.6,0.04109962]
[1724543670776,3.1116,160.62,160.6,0.04109962]
[1724543673387,3.1117,160.61,160.6,0.04109962]
[1724543676080,3.1113,160.63,160.6,0.04109962]
[1724543676388,0.04274345,160.64,160.6,0.04109962]
[1724543679383,3.15394345,160.64,160.6,3.15289962]
[1724543679987,0.04274345,160.64,160.6,3.15289962]
[1724543680387,0.04274345,160.64,160.6,0.04109962]
[1724543680591,0.04274345,160.64,160.61,21.5]
[1724543680882,0.04274345,160.64,160.61,22.7306]
[1724543681086,0.04274345,160.64,160.63,3.1113]
[1724543683281,21.5,160.73,160.67,3.1104]
[1724543683587,4.68,160.74,160.61,1.2306]
[1724543683588,21.5,160.71,160.61,22.7306]
[1724543684189,0.04264719,160.68,160.64,0.04337323]
[1724543684395,0.04264719,160.68,160.65,3.1109]
[1724543686894,0.04264719,160.68,160.64,3.15447323]
[1724543687088,0.04264719,160.68,160.64,0.04337323]
[1724543687489,0.04264719,160.68,160.65,3.1107]
[1724543692501,0.04264719,160.68,160.64,0.04337323]
[1724543692502,11.7107,160.67,160.64,0.04337323]
[1724543692685,8.6,160.65,160.64,0.04337323]
[1724543693794,0.04264719,160.68,160.64,0.04337323]
[1724543693997,8.64264719,160.68,160.64,0.04337323]
[1724543694293,8.6,160.67,160.64,0.04337323]
[1724543695290,0.04264719,160.68,160.64,8.64337323]
[1724543695491,0.04264719,160.68,160.66,3.1105]
[1724543696198,0.04264719,160.68,160.67,3.1105]
[1724543696695,0.04264719,160.68,160.64,0.04337323]
[1724543697393,0.04264719,160.68,160.67,3.1105]
[1724543698395,0.04264719,160.68,160.64,0.04337323]
[1724543700794,0.04264719,160.68,160.65,3.1109]
[1724543702100,0.04264719,160.68,160.67,3.1105]
[1724543706001,0.04264719,160.68,160.66,3.1107]
[1724543706202,0.04264719,160.68,160.64,0.04337323]
[1724543706396,0.04264719,160.68,160.67,3.1105]
[1724543706602,4.84,160.77,160.66,21.49]
[1724543706898,21.49,160.76,160.66,21.49]
[1724543707297,3.1094,160.73,160.68,3.1103]
[1724543707493,0.04404083,160.72,160.69,0.04499057]
[1724543709403,0.04404083,160.72,160.69,3.15509057]
[1724543709606,0.04404083,160.72,160.69,0.04499057]
[1724543710908,3.1099,160.71,160.69,0.04499057]
[1724543711299,21.53404083,160.72,160.69,0.04499057]
[1724543711997,21.49,160.7,160.69,0.04499057]
[1724543712308,0.04404083,160.72,160.69,0.04499057]
[1724543712505,21.53404083,160.72,160.69,0.04499057]
[1724543713004,0.04404083,160.72,160.69,0.04499057]
[1724543713199,24.64374083,160.72,160.69,0.04499057]
[1724543714305,3.1098,160.71,160.69,0.04499057]
[1724543714502,0.04404083,160.72,160.69,0.04499057]
[1724543715306,0.04404083,160.72,160.69,3.15499057]
[1724543717007,8.64404083,160.72,160.69,3.15499057]
[1724543717200,8.6,160.71,160.69,0.04499057]
[1724543717601,0.04404083,160.72,160.69,0.04499057]
[1724543718400,0.04404083,160.72,160.69,21.54499057]
[1724543718902,0.04404083,160.72,160.71,3.1098]
[1724543724008,0.04404083,160.72,160.71,24.6098]
[1724543724309,229.0,160.85,160.77,3.1084]
[1724543724310,21.5,160.82,160.77,3.1084]
[1724543725001,21.5,160.82,160.71,24.63793317]
[1724543725207,1.2259,160.84,160.72,4.84]
[1724543725404,21.5,160.83,160.75,0.04179801]
[1724543725608,21.5,160.81,160.75,3.15079801]
[1724543726201,3.1082,160.79,160.75,0.04179801]
[1724543726400,24.55864532,160.81,160.75,0.04179801]
[1724543727407,3.108,160.8,160.75,0.04179801]
[1724543727711,21.5,160.78,160.75,0.04179801]
[1724543729207,21.5,160.76,160.67,1.301]
[1724543729604,21.5,160.76,160.67,4.72]
[1724543730009,24.6446621,160.76,160.66,4.72]
[1724543730304,0.04028002,160.73,160.69,3.15715924]
[1724543730900,0.04028002,160.73,160.69,0.04705924]
[1724543731610,0.04028002,160.73,160.7,3.1099]
[1724543732202,0.04028002,160.73,160.71,3.1097]
[1724543732707,0.04028002,160.73,160.69,0.04705924]
[1724543733514,0.04028002,160.73,160.7,3.1099]
[1724543734107,3.14968002,160.73,160.69,3.15715924]
[1724543736506,0.04028002,160.73,160.69,0.04705924]
[1724543737417,0.04028002,160.73,160.72,3.1096]
[1724543747609,0.04028002,160.73,160.69,0.04705924]
[1724543750822,8.64028002,160.73,160.69,0.04705924]
[1724543751023,8.64028002,160.73,160.7,3.1098]
[1724543751915,11.74968002,160.73,160.7,3.1098]
[1724543752622,8.64028002,160.73,160.7,3.1098]
[1724543753522,8.64028002,160.73,160.71,3.1097]
[1724543754019,6.61780206,160.72,160.7,3.1099]
[1724543755611,6.61780206,160.72,160.71,3.1098]
[1724543755815,8.64028002,160.73,160.71,3.1098]
[1724543756922,0.04028002,160.73,160.72,3.1096]
[1724543758624,6.65781784,160.73,160.72,3.1096]
[1724543758819,0.04028002,160.73,160.72,3.1096]
[1724543759424,6.65781702,160.73,160.72,3.1096]
[1724543759822,0.04028002,160.73,160.72,3.1096]
[1724543760223,6.65781702,160.73,160.72,3.1096]
[1724543760933,0.04028002,160.73,160.72,3.1096]
[1724543761230,6.65774076,160.73,160.72,3.1096]
[1724543761826,0.04028002,160.73,160.72,3.1096]
[1724543762929,6.65774076,160.73,160.72,3.1096]
[1724543763128,0.04028002,160.73,160.72,3.1096]
[1724543765323,15.25780491,160.73,160.71,3.1098]
[1724543765524,6.61752489,160.72,160.71,3.1098]
[1724543765932,6.61752489,160.72,160.7,3.1099]
[1724543766630,6.61752489,160.72,160.71,3.1098]
[1724543766830,0.04028002,160.73,160.7,8.6]
[1724543767437,0.04028002,160.73,160.71,3.1096]
[1724543767733,0.04028002,160.73,160.7,8.6]
[1724543767938,0.04028002,160.73,160.72,3.1096]
[1724543768229,0.04028002,160.73,160.72,5.09985824]
[1724543771136,8.6,160.8,160.72,1.99025824]
[1724543771325,8.6,160.8,160.73,10.59025824]
[1724543771527,11.7082,160.8,160.75,3.1088]
[1724543772028,6.61623066,160.79,160.76,0.04352666]
[1724543772239,6.61623066,160.78,160.76,3.15232666]
[1724543772436,6.61623066,160.77,160.76,3.15232666]
[1724543772838,6.61623066,160.79,160.76,3.15232666]
[1724543773044,11.7082,160.8,160.76,3.15232666]
[1724543773637,6.6162847,160.78,160.76,3.15232666]
[1724543773840,6.61628143,160.77,160.76,3.15232666]
[1724543774436,6.61628143,160.77,160.76,0.04352666]
[1724543776443,6.61628143,160.77,160.76,3.15232666]
[1724543779544,6.6162778,160.77,160.76,3.15232666]
[1724543782047,3.841,160.88,160.8,3.108]
[1724543782253,3.841,160.88,160.82,0.04193848]
[1724543782254,8.6,160.84,160.82,0.04193848]
[1724543782443,6.61510583,160.83,160.82,0.04193848]
[1724543782651,8.6,160.84,160.82,0.04193848]
[1724543782952,6.61528784,160.83,160.82,0.04193848]
[1724543783150,8.6,160.84,160.82,0.04193848]
[1724543783354,6.61511334,160.83,160.82,0.04193848]
[1724543783551,8.6,160.84,160.82,0.04193848]
[1724543783748,8.6,160.83,160.82,0.04193848]
[1724543785055,8.6,160.83,160.72,14.72002029]
[1724543785357,8.6,160.79,160.73,9.57216919]
[1724543785560,8.6,160.79,160.74,1.9899082]
[1724543785854,4.3073,160.82,160.75,1.9899082]
[1724543786064,8.6,160.83,160.76,10.5899082]
[1724543786255,1.2069,160.87,160.76,10.5899082]
[1724543786256,0.04330251,160.8,160.79,3.1082]
[1724543786466,0.04123923,160.81,160.78,0.04213369]
[1724543786659,8.64123923,160.81,160.78,0.04213369]
[1724543786962,8.64123923,160.81,160.79,3.1081]
[1724543787158,0.04123923,160.81,160.79,3.1081]
[1724543787659,0.04123923,160.81,160.8,3.108]
[1724543787861,0.04123923,160.81,160.78,0.04213369]
[1724543788163,0.04123923,160.81,160.79,3.1081]
[1724543788352,0.04123923,160.81,160.78,0.04213369]
[1724543789857,0.04123923,160.81,160.8,3.108]
[1724543793665,0.04123923,160.81,160.78,0.04213369]
[1724543794169,0.04123923,160.81,160.8,3.108]
[1724543796864,21.76176215,160.95,160.78,8.64213369]
[1724543797068,8.6,160.87,160.81,8.6]
[1724543797470,8.6,160.87,160.84,3.1072]
[1724543797865,8.6,160.87,160.84,3.15334204]
[1724543799171,8.6,160.87,160.85,3.107]
[1724543801474,8.6,160.87,160.84,3.15334204]
[1724543803080,8.6,160.85,160.84,0.04614204]
[1724543803579,1.2827,160.88,160.84,0.04614204]
[1724543803776,8.6,160.85,160.84,0.04565936]
[1724543804277,4.3265,160.87,160.84,0.04565936]
[1724543804474,2.5349,160.88,160.84,0.04565936]
[1724543804675,8.6,160.87,160.84,0.04565936]
[1724543804978,1.2827,160.88,160.84,0.04565936]
[1724543805175,9.8827,160.88,160.84,0.04565936]
[1724543805378,9.8827,160.88,160.84,3.15285936]
[1724543805571,9.8827,160.88,160.84,0.04565936]
[1724543805973,8.6,160.88,160.84,0.04565936]
[1724543806277,8.6,160.88,160.84,3.15285936]
[1724543806675,8.6,160.85,160.84,0.04565936]
[1724543806982,8.6,160.85,160.79,3.1081]
[1724543807180,8.6,160.82,160.79,3.1081]
[1724543807973,0.04499932,160.82,160.79,3.15470534]
[1724543808887,8.6,160.81,160.79,0.04660534]
[1724543809277,3.108,160.8,160.79,0.04660534]
[1724543809583,34.4,160.8,160.7,4.36]
[1724543809885,8.6,160.74,160.69,4.36]
[1724543810271,8.6,160.74,160.65,6.12640991]
[1724543810478,8.6,160.69,160.68,0.04651534]
[1724543811382,0.0442514,160.71,160.68,0.04651534]
[1724543811578,8.6,160.7,160.68,0.04651534]
[1724543812478,0.0442514,160.71,160.68,3.15681534]
[1724543814978,0.0442514,160.71,160.69,3.1101]
[1724543816878,0.0442514,160.71,160.68,0.04651534]
[1724543819185,0.0442514,160.71,160.7,3.1099]
[1724543819485,0.0442514,160.71,160.68,0.04651534]
[1724543819685,0.0442514,160.71,160.69,3.1101]
[1724543819887,0.0442514,160.71,160.68,0.04651534]
[1724543820586,21.49,160.7,160.68,0.04651534]
[1724543820883,22.7799,160.7,160.68,0.04651534]
[1724543821089,9.7299336,160.69,160.68,0.04651534]
[1724543821483,6.6198336,160.69,160.63,3.1112]
[1724543821682,3.1104,160.68,160.63,3.1112]
[1724543821982,6.6198336,160.69,160.63,3.1112]
[1724543822378,0.0462156,160.68,160.64,0.04661413]
[1724543823783,0.0462156,160.68,160.66,3.1107]
[1724543823983,0.0462156,160.68,160.64,0.04661413]
[1724543825178,3.1567156,160.68,160.64,3.15761413]
[1724543826985,21.5362156,160.68,160.64,0.04661413]
[1724543828384,3.1107,160.67,160.64,0.04661413]
[1724543829995,21.5362156,160.68,160.64,0.04661413]
[1724543829996,3.1108,160.66,160.64,0.04661413]
[1724543830388,24.6008,160.66,160.64,0.04661413]
[1724543831089,21.49,160.66,160.64,0.04661413]
[1724543831289,3.1109,160.65,160.64,0.04661413]
[1724543831690,3.1118,160.61,160.57,3.1124]
[1724543831893,24.6018,160.61,160.57,3.1124]
[1724543832091,3.1118,160.61,160.57,3.1124]
[1724543832797,3.15812611,160.61,160.57,3.15205612]
[1724543834095,3.112,160.6,160.57,0.03965612]
[1724543834293,0.04632611,160.61,160.57,0.03965612]
[1724543834485,8.61,160.6,160.57,0.03965612]
[1724543834690,8.61,160.6,160.57,3.15215612]
[1724543836199,3.15802611,160.61,160.57,3.15215612]
[1724543836200,0.04632611,160.61,160.57,0.03965612]
[1724543836392,0.04632611,160.61,160.57,8.64965612]
[1724543837299,0.04632611,160.61,160.6,3.1119]
[1724543838603,1.2819,160.68,160.6,8.61]
[1724543838792,8.61,160.69,160.62,8.61]
[1724543839194,8.61,160.69,160.65,3.1109]
[1724543839392,38.1716,160.77,160.62,8.61]
[1724543839701,8.61,160.7,160.68,0.04005481]
[1724543839889,8.61,160.69,160.68,0.04005481]
[1724543840497,24.6101,160.69,160.68,0.04005481]
[1724543840703,21.5,160.69,160.68,0.04005481]
[1724543841396,1.2583,160.7,160.68,0.04005481]
[1724543842003,0.04253468,160.71,160.68,0.04005481]
[1724543843001,0.04253468,160.71,160.7,3.1099]
[1724543843203,21.5,160.8,160.7,21.5]
[1724543843400,21.5,160.8,160.75,3.1088]
[1724543844206,0.04628681,160.79,160.76,0.04692492]
[1724543847695,0.04628681,160.79,160.76,3.15562492]
[1724543848206,0.04628681,160.79,160.76,0.04692492]
[1724543849302,3.15458681,160.79,160.76,0.04692492]
[1724543849507,21.5,160.78,160.76,0.04692492]
[1724543852706,0.04628681,160.79,160.76,0.04692492]
[1724543854105,0.04628681,160.79,160.76,3.15562492]
[1724543854807,0.04628681,160.79,160.76,0.04692492]
[1724543855206,0.04628681,160.79,160.78,3.1084]
[1724543857208,0.04628681,160.79,160.77,3.1086]
[1724543857404,18.67,161.02,160.76,0.04692492]
[1724543857608,21.5,160.84,160.73,21.5]
[1724543857808,3.1077,160.82,160.77,3.1085]
[1724543858400,0.04061708,160.81,160.78,0.04623086]
[1724543858599,3.14851708,160.81,160.78,0.04623086]
[1724543859410,0.04061708,160.81,160.78,0.04623086]
[1724543861710,21.5,160.8,160.78,0.04623086]
[1724543863704,3.1082,160.79,160.78,0.04623086]
[1724543872618,22.778,160.8,160.69,2.4561]
[1724543872823,21.5,160.77,160.7,4.44]
[1724543873526,24.6087,160.77,160.72,3.1095]
[1724543873831,0.04286415,160.75,160.72,3.1517818]
[1724543874921,0.04286415,160.75,160.72,0.0422818]
[1724543876435,21.5,160.74,160.72,0.0422818]
[1724543877329,24.6093,160.74,160.72,0.0422818]
[1724543880637,3.1094,160.73,160.72,0.0422818]
[1724543880933,31.22782977,160.73,160.72,0.0422818]
[1724543882134,3.1098,160.71,160.67,3.1105]
[1724543883129,3.15447277,160.71,160.67,3.15783333]
[1724543886531,21.5,160.7,160.67,3.15783333]
[1724543886833,24.61,160.7,160.67,0.04733333]
[1724543887542,21.5,160.7,160.67,3.15773333]
[1724543887840,3.15447277,160.71,160.67,3.15773333]
[1724543890034,0.04467277,160.71,160.67,8.64733333]
[1724543890230,0.04467277,160.71,160.69,8.6]
[1724543890441,0.04467277,160.71,160.7,3.1099]
[1724543892145,0.04467277,160.71,160.7,11.7099]
[1724543892436,0.04467277,160.71,160.7,3.1099]
[1724543903445,0.04467277,160.71,160.68,2.5293]
[1724543904548,0.04467277,160.71,160.69,3.1099]
[1724543905444,0.04467277,160.71,160.7,3.1099]
[1724543905646,0.04467277,160.71,160.68,2.5293]
[1724543905846,0.04467277,160.71,160.68,1.2613]
[1724543906848,0.04467277,160.71,160.69,3.11]
[1724543908953,6.66257833,160.71,160.69,3.11]
[1724543909145,0.04467277,160.71,160.69,3.11]
[1724543909356,0.04467277,160.71,160.68,1.2613]
[1724543909357,6.66257833,160.71,160.7,3.1099]
[1724543909950,6.66257833,160.71,160.68,1.2613]
[1724543909951,0.04467277,160.71,160.68,1.2613]
[1724543910649,6.66259766,160.71,160.68,1.2613]
[1724543910850,6.61792489,160.7,160.68,1.2613]
[1724543911057,6.61823194,160.69,160.68,1.2613]
[1724543911362,6.61823194,160.7,160.67,0.04733333]
[1724543911548,6.61823194,160.69,160.67,0.04733333]
[1724543911855,0.04467277,160.71,160.68,3.1102]
[1724543912054,6.61822872,160.7,160.68,3.1102]
[1724543912256,0.04467277,160.71,160.68,3.1102]
[1724543912455,15.26274662,160.71,160.68,3.1102]
[1724543912659,6.61807385,160.7,160.68,3.1102]
[1724543912857,6.61807385,160.7,160.69,3.1101]
[1724543914756,8.64467277,160.71,160.69,3.1101]
[1724543914959,6.61815142,160.7,160.67,0.04733333]
[1724543915255,11.75447277,160.71,160.67,0.04733333]
[1724543915256,15.21815142,160.69,160.67,0.04733333]
[1724543915459,6.61815142,160.68,160.67,0.04733333]
[1724543917956,6.61899222,160.68,160.67,0.04733333]
[1724543918362,3.11,160.7,160.67,0.04733333]
[1724543918665,6.61901804,160.68,160.67,0.04733333]
[1724543919755,6.61901804,160.68,160.6,1.2446]
[1724543919955,8.6,160.66,160.6,5.4246]
[1724543920160,6.61901804,160.65,160.63,3.1113]
[1724543921158,3.1109,160.65,160.62,0.0423632]
[1724543921355,15.21977098,160.64,160.62,0.0423632]
[1724543921562,8.6,160.64,160.62,0.0423632]
[1724543922066,8.6,160.64,160.62,3.1537632]
[1724543926580,8.6,160.64,160.63,3.1113]
[1724543927483,0.0457585,160.66,160.62,0.0423632]
[1724543927680,8.6,160.65,160.62,0.0423632]
[1724543928276,8.6,160.65,160.63,3.1112]
[1724543928582,15.22003926,160.64,160.63,3.1112]
[1724543931883,6.62003926,160.64,160.63,3.1112]
[1724543932082,15.22003926,160.64,160.63,3.1112]
[1724543932476,8.6,160.64,160.63,3.1112]
[1724543933482,15.22012217,160.64,160.63,3.1112]
[1724543933678,15.22012217,160.64,160.62,3.1538632]
[1724543933885,8.6,160.63,160.62,3.1538632]
[1724543934278,8.6,160.63,160.62,0.0423632]
[1724543936277,8.6,160.63,160.62,3.1538632]
[1724543937285,8.6,160.63,160.62,0.0423632]
[1724543943381,8.6,160.63,160.62,3.1538632]
[1724543944187,0.0457585,160.66,160.62,0.0423632]
[1724543944389,8.6,160.64,160.62,0.0423632]
[1724543944787,8.6,160.64,160.63,3.1112]
[1724543945590,0.0457585,160.66,160.62,0.0423632]
[1724543945791,8.6457585,160.66,160.62,0.0423632]
[1724543945986,0.0457585,160.66,160.62,0.0423632]
[1724543946289,0.0457585,160.66,160.65,3.1109]
[1724543948692,8.6457585,160.66,160.65,3.1109]
[1724543949785,15.26512801,160.66,160.65,3.1109]
[1724543950597,6.66512801,160.66,160.65,3.1109]
[1724543950797,8.6457585,160.66,160.65,3.1109]
[1724543951095,15.26521954,160.66,160.65,3.1109]
[1724543951400,8.6457585,160.66,160.65,3.1109]
[1724543952093,15.26519347,160.66,160.65,3.1109]
[1724543953091,8.6457585,160.66,160.65,3.1109]
[1724543954096,0.0457585,160.66,160.65,3.1109]
[1724543960194,0.0457585,160.66,160.65,11.7109]
[1724543960399,6.61823714,160.71,160.7,3.1099]
[1724543960598,8.6,160.73,160.67,8.6]
[1724543960903,8.6,160.73,160.72,3.1096]
[1724543961603,15.21760465,160.73,160.72,3.1096]
[1724543961801,15.21760465,160.73,160.71,3.15074262]
[1724543962103,0.04602034,160.74,160.71,0.04104262]
[1724543962104,8.64602034,160.74,160.71,0.04104262]
[1724543963403,8.64602034,160.74,160.73,3.1094]
[1724543963597,8.64602034,160.74,160.71,0.04104262]
[1724543963897,8.6,160.72,160.71,0.04104262]
[1724543964601,9.72744381,160.72,160.71,0.04104262]
[1724543964794,8.6,160.72,160.71,0.04104262]
[1724543966099,15.21773436,160.72,160.71,0.04104262]
[1724543966303,21.8354817,160.72,160.71,0.04104262]
[1724543966498,15.21773436,160.72,160.71,0.04104262]
[1724543966704,21.83549468,160.72,160.71,0.04104262]
[1724543968005,21.83549468,160.72,160.69,3.1101]
[1724543968006,8.6,160.7,160.69,3.1101]
[1724543968604,15.21840752,160.7,160.69,3.1101]
[1724543969000,8.6,160.7,160.69,3.1101]
[1724543969205,15.21840427,160.7,160.69,3.1101]
[1724543969608,8.6,160.7,160.69,3.1101]
[1724543969801,15.21840427,160.7,160.69,3.1101]